[Event "GER-ch Blitz 2019"]
[Site "Magdeburg"]
[Date "2019.05.25"]
[Round "14.5"]
[White "Braeuer, Franz"]
[Black "Heistermann, Till"]
[Result "1-0"]
[ECO "C41"]
[WhiteElo "2445"]
[BlackElo "2181"]
[Annotator "NA"]
[PlyCount "140"]
[EventDate "2019.05.25"]
[EventType "tourn"]
[EventCountry "GER"]
[Tiebreak "Number of wins+Number of black wins"]
[SourceTitle "playchess.com"]
[Source "ChessBase"]
[SourceQuality "1"]
[TimeControl "180+2"]

1. e4 {[%emt 0:00:00]} d6 {[%emt 0:00:00]} 2. d4 {[%emt 0:00:00]} e5 {[%emt 0:
00:00]} 3. Nf3 {[%emt 0:00:01]} exd4 {[%emt 0:00:00]} 4. Nxd4 {[%emt 0:00:01]}
Nf6 {[%emt 0:00:00]} 5. Nc3 {[%emt 0:00:00]} Be7 {[%emt 0:00:01]} 6. g3 {
[%emt 0:00:01]} O-O {[%emt 0:00:02]} 7. Bg2 {[%emt 0:00:01]} Nc6 {[%emt 0:00:
01]} 8. Nde2 {[%emt 0:00:05]} Re8 {[%emt 0:00:01]} 9. O-O {[%emt 0:00:01]} Bf8
{[%emt 0:00:03]} 10. h3 {[%emt 0:00:04]} Be6 {[%emt 0:00:10]} 11. b3 {[%emt 0:
00:09]} Nd7 {[%emt 0:00:08]} 12. Bb2 {[%emt 0:00:03]} Nc5 {[%emt 0:00:02]} 13.
Qd2 {[%emt 0:00:16]} a6 {[%emt 0:00:26]} 14. Rad1 {[%emt 0:00:02]} Qc8 {
[%emt 0:00:14]} 15. Nf4 {[%emt 0:00:01]} Ne5 {[%emt 0:00:09]} 16. Nxe6 {
[%emt 0:00:07]} fxe6 {[%emt 0:00:02]} 17. f4 {[%emt 0:00:06]} Nc6 {[%emt 0:00:
03]} 18. Ne2 {[%emt 0:00:11]} a5 {[%emt 0:00:12]} 19. a4 {[%emt 0:00:12]} Qd8 {
[%emt 0:00:08]} 20. Kh2 {[%emt 0:00:04]} Qe7 {[%emt 0:00:02]} 21. Rfe1 {
[%emt 0:00:21]} Rad8 {[%emt 0:00:01]} 22. Qe3 {[%emt 0:00:03]} Nb4 {[%emt 0:00:
24]} 23. Rd2 {[%emt 0:00:08]} c6 {[%emt 0:00:10]} 24. Nd4 {[%emt 0:00:15]} Qf7
{[%emt 0:00:15]} 25. Nf3 {[%emt 0:00:07]} Be7 {[%emt 0:00:05]} 26. Bd4 {
[%emt 0:00:07]} Nba6 {[%emt 0:00:01]} 27. Rf1 {[%emt 0:00:18]} Nd7 {[%emt 0:00:
05]} 28. Bc3 {[%emt 0:00:05]} b6 {[%emt 0:00:10]} 29. Nd4 {[%emt 0:00:07]} Rc8
{[%emt 0:00:21]} 30. Rdf2 {[%emt 0:00:11]} d5 {[%emt 0:00:04]} 31. Nf3 {
[%emt 0:00:11]} c5 {[%emt 0:00:07]} 32. exd5 {[%emt 0:00:13]} exd5 {[%emt 0:00:
05]} 33. Qd3 {[%emt 0:00:06]} Nc7 {[%emt 0:00:07]} 34. Ne5 {[%emt 0:00:01]}
Nxe5 {[%emt 0:00:03]} 35. Bxe5 {[%emt 0:00:01]} d4 {[%emt 0:00:08]} 36. Re2 {
[%emt 0:00:03]} Nd5 {[%emt 0:00:05]} 37. Bxd5 {[%emt 0:00:04]} Qxd5 {[%emt 0:
00:01]} 38. Rfe1 {[%emt 0:00:02]} Bf8 {[%emt 0:00:07]} 39. Qc4 {[%emt 0:00:15]}
Qxc4 {[%emt 0:00:02]} 40. bxc4 {[%emt 0:00:00]} Kf7 {[%emt 0:00:01]} 41. Rb1 {
[%emt 0:00:01]} Rc6 {[%emt 0:00:01]} 42. Kg2 {[%emt 0:00:02]} Ree6 {[%emt 0:00:
03]} 43. Kf3 {[%emt 0:00:00]} Bd6 {[%emt 0:00:02]} 44. Bxd6 {[%emt 0:00:05]}
Rxe2 {[%emt 0:00:02]} 45. Kxe2 {[%emt 0:00:01]} Rxd6 {[%emt 0:00:01]} 46. f5 {
[%emt 0:00:13]} Kf6 {[%emt 0:00:01]} 47. g4 {[%emt 0:00:00]} h6 {[%emt 0:00:00]
} 48. Kf3 {[%emt 0:00:01]} g6 {[%emt 0:00:03]} 49. Kf4 {[%emt 0:00:02]} gxf5 {
[%emt 0:00:01]} 50. gxf5 {[%emt 0:00:01]} h5 {[%emt 0:00:13]} 51. Rg1 {[%emt 0:
00:02]} Kf7 {[%emt 0:00:01]} 52. Rg5 {[%emt 0:00:02]} d3 {[%emt 0:00:00]} 53.
cxd3 {[%emt 0:00:02]} Rxd3 {[%emt 0:00:01]} 54. Rxh5 {[%emt 0:00:01]} Rd4+ {
[%emt 0:00:00]} 55. Ke5 Rxc4 {[%emt 0:00:02]} 56. Rh7+ {[%emt 0:00:02]} Kg8 {
[%emt 0:00:03]} 57. Rb7 {[%emt 0:00:01]} Rh4 {[%emt 0:00:02]} 58. Rxb6 {
[%emt 0:00:09]} Rxh3 {[%emt 0:00:03]} 59. Rb5 {[%emt 0:00:00]} Ra3 {[%emt 0:00:
02]} 60. Rxa5 {[%emt 0:00:01]} Kf7 {[%emt 0:00:09]} 61. Ra7+ {[%emt 0:00:00]}
Kf8 {[%emt 0:00:01]} 62. Kf6 {[%emt 0:00:01]} Ke8 {[%emt 0:00:03]} 63. a5 {
[%emt 0:00:01]} c4 {[%emt 0:00:01]} 64. Ra8+ {[%emt 0:00:07]} Kd7 {[%emt 0:00:
01]} 65. Ra7+ {[%emt 0:00:00]} Ke8 {[%emt 0:00:01]} 66. Rc7 {[%emt 0:00:08]}
Rxa5 {[%emt 0:00:02]} 67. Rxc4 Ra6+ {[%emt 0:00:01]} 68. Kg7 {[%emt 0:00:01]}
Ra7+ {[%emt 0:00:02]} 69. Kg6 {[%emt 0:00:01]} Ra6+ {[%emt 0:00:01]} 70. f6 {
[%emt 0:00:01]} Rb6 1-0

[Event "GER-ch Blitz 2019"]
[Site "Magdeburg"]
[Date "2019.05.25"]
[Round "14.6"]
[White "Barzen, Pascal"]
[Black "Ehmann, Thilo"]
[Result "1-0"]
[ECO "B23"]
[WhiteElo "2292"]
[BlackElo "2291"]
[Annotator "NA"]
[PlyCount "57"]
[EventDate "2019.05.25"]
[EventType "tourn"]
[EventCountry "GER"]
[Tiebreak "Number of wins+Number of black wins"]
[SourceTitle "playchess.com"]
[Source "ChessBase"]
[SourceQuality "1"]
[TimeControl "180+2"]

1. e4 {[%emt 0:00:00]} c5 {[%emt 0:00:02]} 2. Nc3 {[%emt 0:00:00]} e6 {[%emt 0:
00:02]} 3. g3 {[%emt 0:00:01]} Nc6 4. Bg2 g6 {[%emt 0:00:16]} 5. d3 {[%emt 0:
00:01]} Bg7 {[%emt 0:00:02]} 6. Be3 {[%emt 0:00:01]} d6 {[%emt 0:00:01]} 7. Qd2
{[%emt 0:00:01]} h5 {[%emt 0:00:10]} 8. f4 {[%emt 0:00:01]} Rb8 {[%emt 0:00:04]
} 9. Nf3 {[%emt 0:00:01]} b5 {[%emt 0:00:02]} 10. e5 {[%emt 0:00:09]} dxe5 {
[%emt 0:00:23]} 11. fxe5 {[%emt 0:00:03]} Nxe5 {[%emt 0:00:09]} 12. Nxe5 {
[%emt 0:00:02]} Bxe5 {[%emt 0:00:01]} 13. Bxc5 {[%emt 0:00:03]} Qc7 {[%emt 0:
00:19]} 14. d4 {[%emt 0:00:09]} Bd6 {[%emt 0:00:39]} 15. Ne4 {[%emt 0:00:01]}
Be7 {[%emt 0:00:04]} 16. O-O {[%emt 0:00:29]} Bb7 {[%emt 0:00:16]} 17. Qf2 {
[%emt 0:00:23]} Bxc5 {[%emt 0:00:18]} 18. Nxc5 {[%emt 0:00:20]} Bxg2 19. Kxg2 {
[%emt 0:00:01]} Nh6 {[%emt 0:00:10]} 20. d5 {[%emt 0:00:15]} Rb6 {[%emt 0:00:
27]} 21. dxe6 {[%emt 0:00:04]} O-O {[%emt 0:00:01]} 22. Nd7 {[%emt 0:00:11]}
Ng4 {[%emt 0:00:01]} 23. exf7+ {[%emt 0:00:34]} Kg7 {[%emt 0:00:06]} 24. Qd4+ {
[%emt 0:00:03]} Kh6 {[%emt 0:00:09]} 25. Nxf8 {[%emt 0:00:05]} Qxc2+ {[%emt 0:
00:01]} 26. Rf2 {[%emt 0:00:02]} Nxf2 {[%emt 0:00:01]} 27. Qxf2 {[%emt 0:00:00]
} Qe4+ {[%emt 0:00:01]} 28. Kg1 {[%emt 0:00:05]} Rc6 {[%emt 0:00:00]} 29. Nxg6
{[%emt 0:00:04]} 1-0

[Event "GER-ch Blitz 2019"]
[Site "Magdeburg"]
[Date "2019.05.25"]
[Round "14.7"]
[White "Kopylov, Michael"]
[Black "Hebbinghaus, Holger"]
[Result "1-0"]
[ECO "A41"]
[WhiteElo "2413"]
[BlackElo "2310"]
[Annotator "NA"]
[PlyCount "68"]
[EventDate "2019.05.25"]
[EventType "tourn"]
[EventCountry "GER"]
[Tiebreak "Number of wins+Number of black wins"]
[SourceTitle "playchess.com"]
[Source "ChessBase"]
[SourceQuality "1"]
[TimeControl "180+2"]

1. d4 {[%emt 0:00:00]} d6 {[%emt 0:00:00]} 2. Nf3 {[%emt 0:00:00]} Bg4 {
[%emt 0:00:00]} 3. g3 {[%emt 0:00:05]} Bxf3 4. exf3 {[%emt 0:00:01]} e6 {
[%emt 0:00:03]} 5. Bg2 {[%emt 0:00:02]} c6 {[%emt 0:00:05]} 6. O-O {[%emt 0:00:
02]} Nf6 {[%emt 0:00:03]} 7. f4 {[%emt 0:00:02]} Be7 {[%emt 0:00:06]} 8. Nd2 {
[%emt 0:00:07]} O-O {[%emt 0:00:03]} 9. Nf3 {[%emt 0:00:02]} Nbd7 {[%emt 0:00:
10]} 10. Re1 {[%emt 0:00:01]} Re8 {[%emt 0:00:02]} 11. c3 {[%emt 0:00:05]} Bf8
{[%emt 0:00:04]} 12. Qb3 {[%emt 0:00:04]} Qb6 {[%emt 0:00:02]} 13. Qc2 {
[%emt 0:00:01]} g6 {[%emt 0:00:16]} 14. Ng5 {[%emt 0:00:08]} d5 {[%emt 0:00:09]
} 15. Bh3 {[%emt 0:00:02]} c5 {[%emt 0:00:11]} 16. dxc5 {[%emt 0:00:07]} Bxc5 {
[%emt 0:00:05]} 17. b4 {[%emt 0:00:13]} Bf8 {[%emt 0:00:03]} 18. Be3 {[%emt 0:
00:03]} Qc6 {[%emt 0:00:06]} 19. Nf3 {[%emt 0:00:13]} Ne4 {[%emt 0:00:35]} 20.
Rac1 {[%emt 0:00:09]} Rec8 {[%emt 0:00:22]} 21. Qb3 {[%emt 0:00:18]} Qc4 {
[%emt 0:00:10]} 22. Bd4 {[%emt 0:00:13]} Bg7 {[%emt 0:00:16]} 23. Qxc4 Rxc4 24.
Bf1 Rc7 {[%emt 0:00:08]} 25. c4 {[%emt 0:00:49]} Nd2 {[%emt 0:00:24]} 26. Nxd2
{[%emt 0:00:07]} Bxd4 {[%emt 0:00:01]} 27. cxd5 {[%emt 0:00:05]} Rxc1 28. Rxc1
exd5 {[%emt 0:00:10]} 29. Rc7 {[%emt 0:00:01]} Nb6 {[%emt 0:00:03]} 30. Nb3 {
[%emt 0:00:06]} Bf6 {[%emt 0:00:05]} 31. Rxb7 {[%emt 0:00:03]} Na4 {[%emt 0:00:
07]} 32. Bb5 {[%emt 0:00:17]} Nc3 {[%emt 0:00:01]} 33. Bc6 {[%emt 0:00:01]} Rc8
{[%emt 0:00:10]} 34. b5 {[%emt 0:00:03]} Nxa2 1-0

[Event "GER-ch Blitz 2019"]
[Site "Magdeburg"]
[Date "2019.05.25"]
[Round "14.8"]
[White "Krause, Benedict"]
[Black "Kirchner, Thomas"]
[Result "1-0"]
[ECO "C50"]
[WhiteElo "2434"]
[BlackElo "2311"]
[Annotator "NA"]
[PlyCount "156"]
[EventDate "2019.05.25"]
[EventType "tourn"]
[EventCountry "GER"]
[Tiebreak "Number of wins+Number of black wins"]
[SourceTitle "playchess.com"]
[Source "ChessBase"]
[SourceQuality "1"]
[TimeControl "180+2"]

1. e4 {[%emt 0:00:00]} e5 {[%emt 0:00:00]} 2. Nf3 {[%emt 0:00:00]} Nc6 {
[%emt 0:00:00]} 3. Bc4 {[%emt 0:00:01]} Bc5 {[%emt 0:00:00]} 4. O-O {[%emt 0:
00:01]} Nf6 {[%emt 0:00:00]} 5. d3 {[%emt 0:00:01]} d6 {[%emt 0:00:01]} 6. c3 {
[%emt 0:00:02]} O-O {[%emt 0:00:02]} 7. h3 {[%emt 0:00:01]} a6 {[%emt 0:00:00]}
8. Bb3 {[%emt 0:00:01]} Ba7 {[%emt 0:00:01]} 9. Nbd2 {[%emt 0:00:01]} Ne7 {
[%emt 0:00:01]} 10. Re1 {[%emt 0:00:02]} Ng6 {[%emt 0:00:01]} 11. Nf1 {[%emt 0:
00:00]} Be6 {[%emt 0:00:02]} 12. Ng3 {[%emt 0:00:05]} h6 {[%emt 0:00:01]} 13.
d4 {[%emt 0:00:02]} exd4 {[%emt 0:00:06]} 14. cxd4 {[%emt 0:00:01]} Re8 {
[%emt 0:00:11]} 15. Bc2 {[%emt 0:00:09]} c5 {[%emt 0:00:13]} 16. d5 {[%emt 0:
00:10]} Bd7 {[%emt 0:00:01]} 17. b3 {[%emt 0:00:02]} b5 {[%emt 0:00:08]} 18.
Bb2 {[%emt 0:00:01]} c4 {[%emt 0:00:10]} 19. bxc4 {[%emt 0:00:25]} bxc4 {
[%emt 0:00:01]} 20. Bc3 {[%emt 0:00:07]} Rb8 {[%emt 0:00:24]} 21. Qd2 {[%emt 0:
00:04]} Ne5 {[%emt 0:00:07]} 22. Nd4 {[%emt 0:00:28]} Qc7 {[%emt 0:00:16]} 23.
Kh2 {[%emt 0:00:24]} h5 {[%emt 0:00:33]} 24. f4 {[%emt 0:00:07]} Ng6 {[%emt 0:
00:05]} 25. Ngf5 {[%emt 0:00:11]} Ne7 {[%emt 0:00:15]} 26. Nxe7+ {[%emt 0:00:
29]} Rxe7 {[%emt 0:00:01]} 27. Nf3 {[%emt 0:00:01]} Nh7 {[%emt 0:00:11]} 28. e5
{[%emt 0:00:03]} Nf8 {[%emt 0:00:16]} 29. exd6 {[%emt 0:00:02]} Qxd6 {[%emt 0:
00:02]} 30. Be5 {[%emt 0:00:01]} Qc5 {[%emt 0:00:10]} 31. Bxb8 {[%emt 0:00:02]}
Bxb8 {[%emt 0:00:01]} 32. Rxe7 {[%emt 0:00:04]} Qxe7 {[%emt 0:00:01]} 33. Re1 {
[%emt 0:00:03]} Qf6 {[%emt 0:00:01]} 34. Ne5 {[%emt 0:00:02]} Bb5 {[%emt 0:00:
02]} 35. Qd4 {[%emt 0:00:14]} g6 {[%emt 0:00:12]} 36. g3 {[%emt 0:00:09]} h4 {
[%emt 0:00:06]} 37. g4 {[%emt 0:00:01]} g5 {[%emt 0:00:08]} 38. Kg2 {[%emt 0:
00:09]} gxf4 {[%emt 0:00:06]} 39. Nf3 {[%emt 0:00:03]} Qh6 {[%emt 0:00:05]} 40.
Qe4 {[%emt 0:00:08]} Bd6 {[%emt 0:00:02]} 41. Qf5 {[%emt 0:00:03]} Bd7 {
[%emt 0:00:03]} 42. Qg5+ {[%emt 0:00:02]} Qxg5 43. Nxg5 {[%emt 0:00:01]} c3 {
[%emt 0:00:03]} 44. Ne4 {[%emt 0:00:01]} Bb4 {[%emt 0:00:01]} 45. Nf6+ {
[%emt 0:00:02]} Kg7 {[%emt 0:00:02]} 46. Nh5+ {[%emt 0:00:02]} Kg8 {[%emt 0:00:
02]} 47. Nxf4 {[%emt 0:00:01]} Bb5 {[%emt 0:00:03]} 48. Nd3 {[%emt 0:00:02]}
Bd6 {[%emt 0:00:01]} 49. Kf3 {[%emt 0:00:05]} Bc4 {[%emt 0:00:00]} 50. Ke4 {
[%emt 0:00:12]} Nd7 {[%emt 0:00:02]} 51. Bb3 {[%emt 0:00:05]} Bb5 {[%emt 0:00:
04]} 52. a4 {[%emt 0:00:01]} Nf6+ {[%emt 0:00:03]} 53. Kf5 {[%emt 0:00:02]}
Bxd3+ {[%emt 0:00:01]} 54. Kxf6 {[%emt 0:00:01]} Kf8 {[%emt 0:00:10]} 55. Rc1 {
[%emt 0:00:03]} Bb4 {[%emt 0:00:02]} 56. Bc2 {[%emt 0:00:01]} Bc4 {[%emt 0:00:
03]} 57. Rd1 {[%emt 0:00:02]} Bd6 {[%emt 0:00:02]} 58. Kg5 {[%emt 0:00:02]}
Be7+ {[%emt 0:00:01]} 59. Kh5 {[%emt 0:00:03]} Be2 {[%emt 0:00:02]} 60. Re1 {
[%emt 0:00:03]} Bf3 {[%emt 0:00:01]} 61. Bb3 {[%emt 0:00:01]} f5 {[%emt 0:00:
05]} 62. d6 {[%emt 0:00:08]} Bxd6 {[%emt 0:00:04]} 63. Kxh4 {[%emt 0:00:00]}
fxg4 {[%emt 0:00:01]} 64. hxg4 {[%emt 0:00:02]} Ba3 {[%emt 0:00:05]} 65. Rf1 {
[%emt 0:00:00]} Ke7 {[%emt 0:00:02]} 66. Rxf3 Kd6 {[%emt 0:00:01]} 67. Rxc3 {
[%emt 0:00:02]} Bb4 {[%emt 0:00:00]} 68. Rd3+ {[%emt 0:00:00]} Ke5 {[%emt 0:00:
01]} 69. Rd5+ {[%emt 0:00:01]} Ke4 {[%emt 0:00:01]} 70. Rf5 {[%emt 0:00:01]}
Be7+ {[%emt 0:00:01]} 71. Kh5 {[%emt 0:00:01]} Bb4 {[%emt 0:00:02]} 72. a5 {
[%emt 0:00:01]} Bc3 {[%emt 0:00:01]} 73. Bc4 {[%emt 0:00:01]} Kd4 {[%emt 0:00:
00]} 74. Bxa6 Ke4 {[%emt 0:00:01]} 75. Bf1 {[%emt 0:00:02]} Ke3 {[%emt 0:00:01]
} 76. a6 {[%emt 0:00:01]} Bd4 {[%emt 0:00:01]} 77. Rf7 {[%emt 0:00:01]} Ke4 {
[%emt 0:00:00]} 78. a7 {[%emt 0:00:01]} Kd5 1-0

[Event "GER-ch Blitz 2019"]
[Site "Magdeburg"]
[Date "2019.05.25"]
[Round "14.9"]
[White "Heidrich, Manfred"]
[Black "Schneider, Ilja"]
[Result "0-1"]
[ECO "B07"]
[WhiteElo "2351"]
[BlackElo "2494"]
[Annotator "ChessBase"]
[PlyCount "82"]
[EventDate "2019.05.25"]
[EventType "tourn"]
[EventCountry "GER"]
[Tiebreak "Number of wins+Number of black wins"]
[SourceTitle "playchess.com"]
[Source "ChessBase"]
[SourceQuality "1"]
[TimeControl "180+2"]

1. e4 {[%emt 0:00:00]} d6 {[%emt 0:00:00]} 2. d4 {[%emt 0:00:00]} Nf6 {[%emt 0:
00:00]} 3. Nc3 {[%emt 0:00:01]} e5 {[%emt 0:00:01]} 4. dxe5 {[%emt 0:00:04]}
dxe5 {[%emt 0:00:00]} 5. Qxd8+ {[%emt 0:00:01]} Kxd8 {[%emt 0:00:01]} 6. Bc4 {
[%emt 0:00:01]} Be6 {[%emt 0:00:01]} 7. Bxe6 fxe6 {[%emt 0:00:01]} 8. Be3 {
[%emt 0:00:08]} Bd6 {[%emt 0:00:01]} 9. f3 {[%emt 0:00:02]} Ke7 {[%emt 0:00:02]
} 10. Nge2 {[%emt 0:00:03]} Nc6 {[%emt 0:00:02]} 11. O-O-O {[%emt 0:00:03]} a6
{[%emt 0:00:00]} 12. Na4 {[%emt 0:00:07]} Nd7 {[%emt 0:00:10]} 13. b3 {[%emt 0:
00:11]} b5 {[%emt 0:00:14]} 14. Nb2 {[%emt 0:00:02]} h6 {[%emt 0:00:06]} 15.
Kb1 {[%emt 0:00:14]} Rhd8 {[%emt 0:00:33]} 16. c4 {[%emt 0:00:09]} Nc5 {
[%emt 0:00:14]} 17. Rd2 {[%emt 0:00:09]} b4 {[%emt 0:00:13]} 18. Rhd1 {[%emt 0:
00:06]} a5 {[%emt 0:00:25]} 19. Nc1 {[%emt 0:00:08]} Nd4 {[%emt 0:00:14]} 20.
Bxd4 {[%emt 0:00:11]} exd4 {[%emt 0:00:01]} 21. Rxd4 {[%emt 0:00:02]} Bxh2 {
[%emt 0:00:02]} 22. Rxd8 {[%emt 0:00:07]} Rxd8 {[%emt 0:00:01]} 23. Rxd8 Kxd8 {
[%emt 0:00:00]} 24. Ncd3 {[%emt 0:00:03]} Nd7 {[%emt 0:00:19]} 25. Kc2 {
[%emt 0:00:22]} Bg1 {[%emt 0:00:05]} 26. Kd2 {[%emt 0:00:05]} Bd4 {[%emt 0:00:
02]} 27. Nd1 {[%emt 0:00:02]} Ke7 {[%emt 0:00:02]} 28. Ne3 {[%emt 0:00:04]} h5
{[%emt 0:00:02]} 29. Nc2 {[%emt 0:00:02]} e5 {[%emt 0:00:16]} 30. Nxd4 {
[%emt 0:00:06]} exd4 {[%emt 0:00:01]} 31. Nf4 {[%emt 0:00:07]} h4 {[%emt 0:00:
10]} 32. Ng6+ {[%emt 0:00:02]} Kf6 {[%emt 0:00:01]} 33. Nxh4 {[%emt 0:00:02]}
Nc5 {[%emt 0:00:00]} 34. g3 {[%emt 0:00:04]} a4 {[%emt 0:00:01]} 35. bxa4 Nxa4
{[%emt 0:00:01]} 36. Kd3 {[%emt 0:00:06]} c5 {[%emt 0:00:00]} 37. Nf5 {[%emt 0:
00:08]} Nc3 {[%emt 0:00:02]} 38. Nd6 {[%emt 0:00:01]} Nxa2 39. Nb7 {[%emt 0:00:
01]} b3 {[%emt 0:00:16]} 40. Nxc5 {[%emt 0:00:04]} Nb4+ {[%emt 0:00:04]} 41.
Kxd4 {[%emt 0:00:06]} b2 0-1

[Event "GER-ch Blitz 2019"]
[Site "Magdeburg"]
[Date "2019.05.25"]
[Round "14.10"]
[White "Carow, Johannes"]
[Black "Svane, Frederik"]
[Result "1-0"]
[ECO "A05"]
[WhiteElo "2445"]
[BlackElo "2342"]
[Annotator "NA"]
[PlyCount "40"]
[EventDate "2019.05.25"]
[EventType "tourn"]
[EventCountry "GER"]
[Tiebreak "Number of wins+Number of black wins"]
[SourceTitle "playchess.com"]
[Source "ChessBase"]
[SourceQuality "1"]
[TimeControl "180+2"]

1. Nf3 {[%emt 0:00:00]} Nf6 {[%emt 0:00:00]} 2. e3 {[%emt 0:00:02]} e6 {
[%emt 0:00:00]} 3. c4 {[%emt 0:00:02]} b6 {[%emt 0:00:01]} 4. b3 {[%emt 0:00:
03]} Bb7 {[%emt 0:00:02]} 5. Bb2 {[%emt 0:00:01]} Be7 {[%emt 0:00:02]} 6. Be2 {
[%emt 0:00:06]} O-O {[%emt 0:00:02]} 7. O-O {[%emt 0:00:02]} c5 {[%emt 0:00:02]
} 8. d4 {[%emt 0:00:07]} cxd4 {[%emt 0:00:01]} 9. Nxd4 {[%emt 0:00:03]} d5 {
[%emt 0:00:02]} 10. Nd2 {[%emt 0:00:10]} Nc6 {[%emt 0:00:11]} 11. Rc1 {[%emt 0:
00:05]} Rc8 {[%emt 0:00:11]} 12. Re1 {[%emt 0:00:16]} Qd7 {[%emt 0:00:20]} 13.
Nxc6 {[%emt 0:00:03]} Bxc6 {[%emt 0:00:10]} 14. Nf3 {[%emt 0:00:01]} dxc4 {
[%emt 0:00:43]} 15. Qxd7 {[%emt 0:00:13]} Nxd7 {[%emt 0:00:15]} 16. Bxc4 {
[%emt 0:00:04]} Bb7 {[%emt 0:00:23]} 17. Nd4 {[%emt 0:00:03]} a6 {[%emt 0:00:
21]} 18. Nxe6 {[%emt 0:00:26]} Rfe8 {[%emt 0:00:40]} 19. Nxg7 {[%emt 0:00:07]}
b5 {[%emt 0:00:06]} 20. Nxe8 {[%emt 0:00:30]} bxc4 {[%emt 0:00:00]} 1-0

[Event "GER-ch Blitz 2019"]
[Site "Magdeburg"]
[Date "2019.05.25"]
[Round "14.11"]
[White "Schulze, Marc"]
[Black "Schulz, Karsten"]
[Result "1/2-1/2"]
[ECO "A45"]
[WhiteElo "2220"]
[BlackElo "2227"]
[Annotator "NA"]
[PlyCount "57"]
[EventDate "2019.05.25"]
[EventType "tourn"]
[EventCountry "GER"]
[Tiebreak "Number of wins+Number of black wins"]
[SourceTitle "playchess.com"]
[Source "ChessBase"]
[SourceQuality "1"]
[TimeControl "180+2"]

1. d4 {[%emt 0:00:00]} Nf6 {[%emt 0:00:00]} 2. Bf4 {[%emt 0:00:01]} g6 {
[%emt 0:00:00]} 3. e3 {[%emt 0:00:00]} Bg7 {[%emt 0:00:01]} 4. Nf3 {[%emt 0:00:
01]} d6 {[%emt 0:00:01]} 5. h3 {[%emt 0:00:01]} O-O {[%emt 0:00:02]} 6. c4 {
[%emt 0:00:01]} c5 {[%emt 0:00:07]} 7. Nc3 {[%emt 0:00:01]} cxd4 {[%emt 0:00:
03]} 8. exd4 {[%emt 0:00:02]} d5 {[%emt 0:00:01]} 9. c5 {[%emt 0:00:00]} Ne4 {
[%emt 0:00:08]} 10. Bd3 {[%emt 0:00:09]} Bf5 {[%emt 0:00:07]} 11. O-O {[%emt 0:
00:08]} Nc6 {[%emt 0:00:01]} 12. Bb5 {[%emt 0:00:22]} a6 {[%emt 0:00:22]} 13.
Bxc6 {[%emt 0:00:03]} bxc6 {[%emt 0:00:01]} 14. Na4 {[%emt 0:00:07]} f6 {
[%emt 0:00:14]} 15. Nb6 {[%emt 0:00:05]} Ra7 {[%emt 0:00:02]} 16. Qa4 {[%emt 0:
00:04]} Bd7 {[%emt 0:00:10]} 17. Qc2 {[%emt 0:00:23]} Re8 {[%emt 0:00:34]} 18.
Rfe1 {[%emt 0:00:10]} e5 {[%emt 0:00:08]} 19. Bh2 {[%emt 0:00:06]} Bf5 {
[%emt 0:00:09]} 20. Qa4 {[%emt 0:00:10]} Bd7 {[%emt 0:00:00]} 21. Rad1 {
[%emt 0:00:14]} Qe7 {[%emt 0:00:13]} 22. dxe5 {[%emt 0:00:31]} fxe5 {[%emt 0:
00:01]} 23. Nxe5 {[%emt 0:00:11]} Bxe5 {[%emt 0:00:03]} 24. Bxe5 {[%emt 0:00:
01]} Qxe5 {[%emt 0:00:05]} 25. f3 {[%emt 0:00:00]} Qg3 {[%emt 0:00:30]} 26.
Nxd7 {[%emt 0:00:19]} Qf2+ {[%emt 0:00:14]} 27. Kh2 {[%emt 0:00:00]} Qg3+ {
[%emt 0:00:04]} 28. Kg1 {[%emt 0:00:02]} Qf2+ 29. Kh2 1/2-1/2

[Event "GER-ch Blitz 2019"]
[Site "Magdeburg"]
[Date "2019.05.25"]
[Round "14.12"]
[White "Stern, Rene"]
[Black "Zelbel, Patrick"]
[Result "1-0"]
[ECO "A04"]
[WhiteElo "2538"]
[BlackElo "2439"]
[Annotator "ChessBase"]
[PlyCount "42"]
[EventDate "2019.05.25"]
[EventType "tourn"]
[EventCountry "GER"]
[Tiebreak "Number of wins+Number of black wins"]
[SourceTitle "playchess.com"]
[Source "ChessBase"]
[SourceQuality "1"]
[TimeControl "180+2"]

1. Nf3 {[%emt 0:00:00]} g6 {[%emt 0:00:00]} 2. c4 Bg7 3. e4 {[%emt 0:00:02]} c5
{[%emt 0:00:01]} 4. d4 {[%emt 0:00:01]} d6 {[%emt 0:00:01]} 5. dxc5 {[%emt 0:
00:17]} Qa5+ {[%emt 0:00:14]} 6. Nc3 {[%emt 0:00:04]} Bxc3+ {[%emt 0:00:19]} 7.
bxc3 {[%emt 0:00:02]} Qxc5 {[%emt 0:00:01]} 8. Be3 {[%emt 0:00:17]} Qa5 {
[%emt 0:00:05]} 9. Bd3 {[%emt 0:00:03]} Nf6 {[%emt 0:00:05]} 10. O-O {[%emt 0:
00:04]} Nc6 {[%emt 0:00:06]} 11. c5 {[%emt 0:00:27]} Bg4 {[%emt 0:00:28]} 12.
cxd6 {[%emt 0:00:04]} Bxf3 {[%emt 0:00:53]} 13. Qxf3 {[%emt 0:00:04]} Ne5 {
[%emt 0:00:04]} 14. Qe2 {[%emt 0:00:05]} O-O-O {[%emt 0:00:20]} 15. Bd4 {
[%emt 0:00:28]} Rxd6 {[%emt 0:00:16]} 16. f4 {[%emt 0:00:13]} Nxd3 {[%emt 0:00:
02]} 17. Qxd3 {[%emt 0:00:01]} Qa6 {[%emt 0:00:07]} 18. Qh3+ {[%emt 0:00:41]}
Rd7 {[%emt 0:00:05]} 19. e5 {[%emt 0:00:03]} Ne4 20. e6 Rxd4 21. cxd4 f5 1-0

[Event "GER-ch Blitz 2019"]
[Site "Magdeburg"]
[Date "2019.05.25"]
[Round "14.13"]
[White "Kopylov, Daniel"]
[Black "Hirneise, Jens"]
[Result "0-1"]
[ECO "B56"]
[WhiteElo "2263"]
[BlackElo "2375"]
[Annotator "NA"]
[PlyCount "52"]
[EventDate "2019.05.25"]
[EventType "tourn"]
[EventCountry "GER"]
[Tiebreak "Number of wins+Number of black wins"]
[SourceTitle "playchess.com"]
[Source "ChessBase"]
[SourceQuality "1"]
[TimeControl "180+2"]

1. e4 {[%emt 0:00:00]} c5 {[%emt 0:00:00]} 2. Nf3 {[%emt 0:00:00]} d6 {[%emt 0:
00:00]} 3. d4 {[%emt 0:00:01]} cxd4 {[%emt 0:00:00]} 4. Nxd4 {[%emt 0:00:05]}
Nf6 {[%emt 0:00:01]} 5. Nc3 {[%emt 0:00:01]} Bd7 {[%emt 0:00:01]} 6. Bg5 {
[%emt 0:00:06]} e6 {[%emt 0:00:01]} 7. Qd2 {[%emt 0:00:03]} h6 {[%emt 0:00:01]}
8. Bh4 {[%emt 0:00:14]} Nxe4 {[%emt 0:00:03]} 9. Nxe4 {[%emt 0:00:56]} Qxh4 {
[%emt 0:00:02]} 10. Bd3 {[%emt 0:00:05]} d5 {[%emt 0:00:11]} 11. Nf3 {[%emt 0:
00:15]} Qd8 {[%emt 0:00:17]} 12. Ng3 {[%emt 0:00:04]} Nc6 {[%emt 0:00:09]} 13.
O-O {[%emt 0:00:02]} Qc7 {[%emt 0:00:12]} 14. c4 {[%emt 0:00:07]} dxc4 {
[%emt 0:00:09]} 15. Bxc4 {[%emt 0:00:02]} Be7 {[%emt 0:00:11]} 16. Rfd1 {
[%emt 0:00:13]} Rd8 {[%emt 0:00:17]} 17. Qe2 {[%emt 0:00:04]} O-O {[%emt 0:00:
14]} 18. Rac1 {[%emt 0:00:01]} Bc8 {[%emt 0:00:08]} 19. a3 {[%emt 0:00:01]}
Rxd1+ {[%emt 0:00:02]} 20. Rxd1 {[%emt 0:00:02]} Rd8 {[%emt 0:00:02]} 21. Bd3 {
[%emt 0:00:05]} g6 {[%emt 0:00:20]} 22. h4 {[%emt 0:00:02]} h5 {[%emt 0:00:32]}
23. Rc1 {[%emt 0:00:13]} Qa5 {[%emt 0:00:11]} 24. Be4 {[%emt 0:00:11]} Bd7 {
[%emt 0:00:02]} 25. b4 {[%emt 0:00:09]} Qxa3 {[%emt 0:00:11]} 26. b5 {[%emt 0:
00:01]} Qxc1+ {[%emt 0:00:02]} 0-1